bitfinex-derivatives/quotes_ETHF0:USTF0_20250308
["timestamp","ask_amount","ask_price","bid_price","bid_amount"]
[1741421490130,0.6711,2134.5,2134.4,3.9771]
[1741421490538,2.063,2135.0,2134.4,3.04]
[1741421490726,0.6711,2134.9,2134.7,0.93695]
[1741421490926,0.67813103,2134.9,2134.7,3.48695]
[1741421491127,0.67813103,2134.9,2134.8,0.93693]
[1741421491329,0.67813103,2134.9,2134.8,3.38693]
[1741421492331,0.67813103,2134.9,2134.8,2.45]
[1741421492725,0.67813103,2134.9,2134.8,3.38693]
[1741421493930,0.00703103,2134.9,2134.8,3.38693]
[1741421495142,0.00703103,2134.9,2134.8,2.45]
[1741421495332,0.66063103,2134.9,2134.8,2.45]
[1741421495640,0.66063103,2134.9,2134.8,3.38693]
[1741421496628,0.66063103,2134.9,2134.8,2.45]
[1741421496839,1.59751103,2134.9,2134.8,2.45]
[1741421497225,0.93697,2134.7,2134.6,3.2078]
[1741421497430,0.93697,2134.7,2134.6,3.4078]
[1741421498933,3.2078,2134.8,2134.5,0.00703103]
[1741421499139,2.19341,2134.6,2134.5,0.04703103]
[1741421499437,4.25741,2134.6,2134.5,0.04703103]
[1741421500039,3.62291,2134.6,2134.5,0.04703103]
[1741421502036,2.064,2134.7,2134.5,0.04703103]
[1741421502228,3.00099,2134.7,2134.5,0.98407103]
[1741421502630,3.00099,2134.7,2134.5,1.63557103]
[1741421502833,0.93701,2134.6,2134.5,0.69853103]
[1741421503033,3.001,2134.7,2134.5,0.69853103]
[1741421503233,2.064,2134.7,2134.5,1.63557103]
[1741421503732,3.00098,2134.7,2134.5,1.63557103]
[1741421505435,2.064,2134.7,2134.5,0.69853103]
[1741421505642,0.93701,2134.6,2134.5,0.69853103]
[1741421505834,0.93701,2134.6,2134.5,0.04703103]
[1741421508838,2.064,2134.7,2134.5,0.98406103]
[1741421509041,0.6406,2134.8,2134.5,0.98405103]
[1741421510238,1.57755,2134.8,2134.5,0.04703103]
[1741421510435,2.72263103,2134.9,2134.6,3.8747]
[1741421510639,2.72263103,2134.9,2134.6,6.5735]
[1741421510839,0.93697,2134.7,2134.6,2.7169]
[1741421511638,2.72263103,2134.9,2134.6,2.7169]
[1741421511847,0.93695,2134.8,2134.6,2.7169]
[1741421512040,2.72263103,2134.9,2134.6,2.7169]
[1741421512250,0.93697,2134.7,2134.6,2.7169]
[1741421514240,0.93697,2134.7,2134.6,2.05]
[1741421514447,0.93697,2134.7,2134.6,3.62631]
[1741421514745,0.93693,2134.8,2134.6,3.62631]
[1741421514945,0.93695,2134.8,2134.6,3.62631]
[1741421515446,0.66063103,2134.9,2134.7,1.3229]
[1741421515640,0.93693,2134.8,2134.7,3.8529]
[1741421515844,0.66063103,2134.9,2134.7,3.8529]
[1741421516042,0.00703103,2134.9,2134.8,0.93693]
[1741421516244,0.00703103,2134.9,2134.8,5.21693]
[1741421516440,0.6392,2135.3,2134.9,2.34221]
[1741421516638,2.6992,2135.5,2135.1,0.93677]
[1741421516845,0.93675,2135.2,2135.1,0.18]
[1741421520245,0.00703103,2135.4,2135.1,0.18]
[1741421520552,0.94373103,2135.4,2135.1,2.42645]
[1741421521553,0.00703103,2135.4,2135.1,1.4897]
[1741421521748,0.93675,2135.2,2135.1,0.18]
[1741421522646,0.93675,2135.2,2135.0,3.2078]
[1741421522647,0.00703103,2135.4,2135.0,3.2078]
[1741421522851,1.277,2135.1,2134.6,0.937]
[1741421523044,0.93694,2134.8,2134.6,0.937]
[1741421523243,0.93694,2134.8,2134.6,3.527]
[1741421523547,0.6365,2135.0,2134.6,2.59]
[1741421523748,0.93697,2134.7,2134.6,2.59]
[1741421524051,0.6365,2135.0,2134.6,3.527]
[1741421524052,0.93694,2134.8,2134.6,3.527]
[1741421524253,0.93694,2134.8,2134.6,4.1652]
[1741421524846,0.6365,2135.0,2134.6,3.2282]
[1741421524847,0.93691,2134.9,2134.6,3.2282]
[1741421525051,0.93693,2134.8,2134.6,4.16519]
[1741421530946,0.6365,2135.0,2134.6,3.2282]
[1741421531150,0.93697,2134.7,2134.6,3.2282]
[1741421531345,0.6365,2135.0,2134.6,2.59]
[1741421531552,0.93696,2134.8,2134.6,2.59]
[1741421532356,0.93697,2134.7,2134.6,2.59]
[1741421534559,2.053,2134.7,2134.5,0.00703103]
[1741421534753,2.84591,2134.6,2134.5,0.06703103]
[1741421537961,0.93723,2134.1,2134.0,1.2857]
[1741421538259,0.93723,2134.1,2134.0,0.85]
[1741421538863,1.9586,2134.2,2134.0,0.01]
[1741421539160,2.3431,2134.1,2133.8,0.00703103]
[1741421539368,0.93732,2133.9,2133.8,0.31703103]
[1741421539770,6.19912,2133.9,2133.8,0.00703103]
[1741421540161,2.99132,2133.9,2133.8,0.00703103]
[1741421542073,6.19912,2133.9,2133.8,0.00703103]
[1741421542275,5.2618,2133.9,2133.3,3.2078]
[1741421542476,1.2704,2133.8,2133.3,7.76538]
[1741421542776,0.93754,2133.4,2133.3,6.8278]
[1741421543262,0.93754,2133.4,2133.3,3.62]
[1741421544772,0.93763,2133.2,2133.1,0.00703103]
[1741421545078,0.93763,2133.2,2133.1,1.37703103]
[1741421545672,4.14543,2133.2,2133.1,1.37703103]
[1741421545974,4.14543,2133.2,2133.1,0.00703103]
[1741421546170,4.14543,2133.2,2132.3,2.054]
[1741421546171,0.93784,2132.8,2132.5,0.93792]
[1741421546474,0.93787,2132.7,2132.5,3.18]
[1741421546779,0.93789,2132.6,2132.5,3.18]
[1741421546977,3.63759,2132.6,2132.5,3.18]
[1741421548079,3.63759,2132.6,2132.3,3.21483103]
[1741421548080,0.93798,2132.4,2132.3,3.21483103]
[1741421548276,0.93798,2132.4,2132.3,4.70483103]
[1741421549467,4.93798,2132.4,2132.3,0.48823103]
[1741421549675,4.0,2132.4,2131.3,3.2078]
[1741421549875,3.2078,2131.8,2131.3,11.3178]
[1741421550077,2.065,2132.0,2131.4,0.6363]
[1741421550373,0.93838,2131.5,2131.4,10.12]
[1741421550775,3.01138,2131.5,2131.4,10.12]
[1741421550974,3.01138,2131.5,2131.2,0.00703103]
[1741421550975,0.93846,2131.3,2131.2,0.00703103]
[1741421551181,2.34606,2131.4,2130.4,5.1251]
[1741421551475,3.2078,2131.1,2130.4,2.67]
[1741421551777,24.128,2131.5,2130.4,2.67]
[1741421551778,3.2078,2130.8,2130.4,2.67]
[1741421551976,24.40104,2131.5,2130.6,3.2078]
[1741421551977,3.2078,2131.4,2130.6,3.2078]
[1741421552282,2.103,2131.2,2131.0,3.2078]
[1741421552485,2.103,2131.2,2131.0,5.3478]
[1741421552974,2.126,2131.6,2131.5,0.93838]
[1741421553179,0.00703103,2131.7,2131.6,0.93833]
[1741421553372,0.93827,2131.8,2131.6,1.4]
[1741421553572,0.93829,2131.7,2131.6,1.4]
[1741421553770,2.138,2131.7,2131.2,0.6122]
[1741421553969,0.93846,2131.3,2131.2,0.29]
[1741421554176,0.93857,2131.1,2130.8,0.6122]
[1741421554376,2.139,2131.3,2130.8,0.9322]
[1741421554684,0.00703103,2131.2,2131.1,3.2078]
[1741421554876,0.00703103,2131.2,2131.1,5.7378]
[1741421555077,0.6082,2131.6,2131.1,5.7378]
[1741421555078,2.138,2131.6,2131.1,5.7378]
[1741421555276,2.138,2131.6,2131.2,0.6182]
[1741421555480,3.07634,2131.6,2131.3,0.6399]
[1741421555681,2.138,2131.6,2131.3,3.1699]
[1741421556281,0.00703103,2131.7,2131.4,1.55089]
[1741421556585,0.00703103,2131.7,2131.4,3.77089]
[1741421557377,0.94532103,2131.7,2131.4,2.8325]
[1741421557579,0.00703103,2131.7,2131.4,6.0403]
[1741421557979,0.94533103,2131.7,2131.4,6.0403]
[1741421558175,0.94534103,2131.7,2131.4,6.0403]
[1741421558586,0.93837,2131.6,2131.4,6.0403]
[1741421558783,0.93838,2131.5,2131.4,2.8325]
[1741421558982,3.21483103,2131.7,2131.4,2.8325]
[1741421559188,0.93835,2131.6,2131.4,2.8325]
[1741421559582,3.21483103,2131.7,2131.4,2.8325]
[1741421560082,3.21483103,2131.7,2131.5,0.93835]
[1741421560287,3.21483103,2131.7,2131.5,6.49835]
[1741421560586,3.21483103,2131.7,2131.5,5.56]
[1741421560791,4.15314103,2131.7,2131.5,5.56]
[1741421560990,3.21483103,2131.7,2131.5,5.56]
[1741421561383,0.00703103,2131.7,2131.5,6.49834]
[1741421562488,0.00703103,2131.7,2131.5,5.56]
[1741421562691,0.94534103,2131.7,2131.5,5.56]
[1741421562886,0.00703103,2131.7,2131.5,5.56]
[1741421563189,0.93833,2131.6,2131.5,5.56]
[1741421563783,0.00703103,2131.7,2131.5,5.56]
[1741421564287,0.00703103,2131.7,2131.6,0.93833]
[1741421564594,3.07309,2132.2,2132.0,0.93815]
[1741421564794,3.07309,2132.2,2132.1,0.6357]
[1741421565088,0.93813,2132.1,2131.8,4.14603]
[1741421565289,0.93813,2132.1,2131.9,0.9382]
[1741421565592,0.93814,2132.1,2131.9,5.2]
[1741421565787,2.14203103,2132.2,2131.9,5.2]
[1741421565991,2.14203103,2132.2,2132.0,1.57383]
[1741421566195,0.00703103,2132.2,2132.1,0.93811]
[1741421566396,0.00703103,2132.2,2132.1,0.97811]
[1741421569293,0.94510103,2132.2,2132.1,0.04]
[1741421569888,0.94510103,2132.2,2132.1,0.97811]
[1741421569889,0.00703103,2132.2,2132.1,0.97811]
[1741421571397,0.00703103,2132.2,2132.1,4.18591]
[1741421571895,0.94510103,2132.2,2132.1,0.04]
[1741421572690,0.00703103,2132.2,2132.1,0.04]
[1741421572988,0.94510103,2132.2,2132.1,0.04]
[1741421574096,0.00703103,2132.2,2132.1,0.97811]
[1741421576604,0.00703103,2132.2,2132.1,4.18591]
[1741421582301,0.94510103,2132.2,2132.1,0.04]
[1741421583505,0.00703103,2132.2,2132.1,0.97811]
[1741421584508,0.94510103,2132.2,2132.1,0.04]
[1741421585204,0.00703103,2132.2,2132.1,0.97811]
[1741421585505,0.94510103,2132.2,2132.1,0.04]
[1741421585696,0.00703103,2132.2,2132.1,0.97811]
[1741421586408,0.00703103,2132.2,2132.1,0.04]
[1741421586604,0.00703103,2132.2,2132.1,0.97811]
[1741421587009,0.94510103,2132.2,2132.1,0.97811]
[1741421587307,0.00703103,2132.2,2132.1,0.97811]
[1741421590809,3.2078,2133.3,2132.2,2.3451]
[1741421591000,2.106,2133.0,2132.9,0.93776]
[1741421591199,2.106,2133.0,2132.9,4.49776]
[1741421591414,2.108,2133.1,2132.9,3.56]
[1741421591606,0.9377,2133.1,2132.9,3.56]
[1741421591906,0.93769,2133.1,2132.9,3.56]
[1741421592103,1.24753103,2133.2,2132.9,3.56]
[1741421592304,0.63913103,2133.2,2132.9,3.56]
[1741421592504,1.57679103,2133.2,2132.9,4.49773]
[1741421592715,0.93769,2133.1,2132.9,4.49773]
[1741421592904,0.93769,2133.1,2132.9,4.49774]
[1741421593407,0.00703103,2133.2,2133.1,0.93767]
[1741421593605,0.00703103,2133.2,2133.1,3.35767]
[1741421594418,0.00703103,2133.2,2133.1,6.56547]
[1741421595506,5.03,2133.9,2133.1,5.6278]
[1741421595708,3.2078,2134.0,2133.2,1.27]
[1741421595909,2.113,2133.9,2133.4,3.2078]
[1741421596109,0.93743,2133.7,2133.4,5.1878]
[1741421596309,0.93743,2133.7,2133.4,6.12532]
[1741421596516,0.93743,2133.7,2133.4,5.1878]
[1741421596810,0.93741,2133.7,2133.5,0.93749]
[1741421597008,0.93741,2133.7,2133.5,4.26]
[1741421597813,0.00703103,2133.8,2133.5,4.26]
[1741421598313,0.94442103,2133.8,2133.6,0.93745]
[1741421598515,0.94442103,2133.8,2133.6,2.99745]
[1741421599012,0.9375,2133.6,2133.4,3.2078]
[1741421599218,0.9375,2133.5,2133.4,7.7278]
[1741421599610,0.93758,2133.4,2133.2,0.6611]
[1741421599810,0.93758,2133.3,2133.2,1.2111]
[1741421600921,0.93757,2133.4,2133.2,2.14871]
[1741421601116,0.93757,2133.4,2133.2,1.2111]
[1741421601519,0.93748,2133.6,2133.3,0.93755]
[1741421601721,3.2078,2133.7,2133.3,1.79]
[1741421602019,0.93753,2133.5,2133.3,1.79]
[1741421602220,0.93754,2133.4,2133.3,1.79]
[1741421604322,0.93752,2133.5,2133.3,1.79]
[1741421604625,0.93747,2133.6,2133.3,2.72757]
[1741421604922,0.93747,2133.6,2133.3,1.79]
[1741421605117,0.93747,2133.6,2133.3,2.72755]
[1741421605317,2.11503103,2133.8,2133.3,1.79]
[1741421605522,0.93754,2133.4,2133.3,1.79]
[1741421608027,7.64874,2133.4,2132.7,3.2078]
[1741421608228,0.93776,2132.9,2132.8,1.91703103]
[1741421609027,0.938,2132.4,2132.1,3.2078]
[1741421609225,0.93802,2132.4,2132.1,6.50591]
[1741421610030,0.93802,2132.4,2132.2,0.6223]
[1741421610228,0.93802,2132.4,2132.2,4.9623]
[1741421610525,0.93802,2132.3,2132.2,4.9623]
[1741421610727,0.93802,2132.3,2132.2,4.34]
[1741421610932,0.93811,2132.1,2132.0,0.00703103]
[1741421611129,0.93811,2132.1,2132.0,0.30703103]
[1741421612234,0.93808,2132.2,2132.0,0.30703103]
[1741421612528,0.93807,2132.2,2132.0,1.24518103]
[1741421613026,0.93807,2132.2,2132.0,0.30703103]
[1741421613428,2.11503103,2132.5,2132.0,0.30703103]
[1741421613827,0.93798,2132.4,2132.2,0.93806]
[1741421614129,2.11503103,2132.5,2132.2,7.82806]
[1741421614328,2.11503103,2132.5,2132.2,6.89]
[1741421614530,0.00703103,2132.5,2132.2,8.43644]
[1741421614827,3.05199103,2132.5,2132.2,8.43644]
[1741421615835,2.11403103,2132.5,2132.2,7.4984]
[1741421616136,0.93801,2132.4,2132.2,7.4984]
[1741421616328,3.04899103,2132.5,2132.2,8.43644]
[1741421616528,3.04999103,2132.5,2132.2,8.43645]
[1741421616723,2.11203103,2132.5,2132.2,7.4984]
[1741421617039,2.11203103,2132.5,2132.4,0.93798]
[1741421617335,0.00703103,2132.5,2132.4,7.75798]
[1741421618233,0.00703103,2132.5,2132.4,10.96578]
[1741421619232,0.94497103,2132.5,2132.4,10.0278]
[1741421619434,0.94497103,2132.5,2132.4,6.82]
[1741421623044,0.93832,2131.7,2131.4,0.9384]
[1741421623338,3.05135,2131.6,2131.4,7.8778]
[1741421623537,2.113,2131.6,2131.4,7.8778]
[1741421623742,2.113,2131.6,2131.4,8.81622]
[1741421624543,3.05135,2131.6,2131.4,7.8778]
[1741421626337,0.93838,2131.5,2131.4,7.8778]
[1741421626738,3.05136,2131.6,2131.4,7.8778]
[1741421628246,3.05136,2131.6,2131.4,8.81622]
[1741421628443,3.05136,2131.6,2131.4,7.8778]
[1741421628642,0.93838,2131.5,2131.4,7.8778]
[1741421628947,3.05136,2131.6,2131.4,8.81622]
[1741421629245,2.113,2131.6,2131.4,8.8162]
[1741421629836,0.93838,2131.6,2131.4,7.8778]
[1741421630040,0.93838,2131.6,2131.4,8.81622]
[1741421630448,3.2078,2132.0,2131.4,7.8778]
[1741421630650,0.93835,2131.6,2131.4,8.8162]
[1741421630949,0.93838,2131.5,2131.4,4.67]
[1741421632046,0.93837,2131.6,2131.4,5.60842]
[1741421632750,0.93835,2131.6,2131.4,5.60841]
[1741421633151,5.3108,2131.7,2131.4,4.67]
[1741421633850,0.93833,2131.6,2131.4,8.81621]
[1741421634243,4.14618,2131.5,2131.4,4.67]
[1741421635949,3.2078,2131.5,2131.4,4.67]
[1741421636147,4.14618,2131.5,2131.4,4.67]
[1741421636347,3.2078,2131.5,2131.4,5.60842]
[1741421636556,4.14618,2131.5,2131.4,4.67]
[1741421637648,3.03838,2131.5,2131.4,4.67]
[1741421640352,2.1,2131.5,2131.3,0.00703103]
[1741421640555,0.93842,2131.4,2131.3,2.42703103]
[1741421641652,2.1,2131.5,2131.3,2.42703103]
[1741421641855,0.93842,2131.4,2131.3,2.42703103]
[1741421642757,3.03242,2131.4,2131.3,2.42703103]
[1741421647760,2.094,2131.4,2131.3,3.36549103]
[1741421647960,2.087,2131.5,2131.4,0.9384]
[1741421648154,2.087,2131.5,2131.4,4.9528]
[1741421648652,2.087,2131.5,2131.4,4.0144]
[1741421648854,2.087,2131.5,2131.4,4.95282]
[1741421649252,3.2078,2131.8,2131.4,4.0144]
[1741421649449,3.02429,2131.7,2131.5,1.58996]
[1741421649654,0.93829,2131.7,2131.6,0.6447]
[1741421649855,0.93829,2131.7,2131.6,3.4947]
[1741421650063,3.02527,2131.8,2131.6,4.43303]
[1741421650358,0.93822,2131.9,2131.7,4.14608]
[1741421650559,3.02522,2131.9,2131.7,6.24608]
[1741421650756,3.02522,2131.9,2131.8,0.6285]
[1741421650961,3.02522,2131.9,2131.8,0.6685]
[1741421652055,2.087,2131.9,2131.8,0.6685]
[1741421652262,2.085,2131.9,2131.8,0.6685]
[1741421653760,0.93818,2132.0,2131.8,0.6685]
[1741421653959,2.083,2132.0,2131.8,0.6685]
[1741421654162,0.9382,2131.9,2131.8,0.6685]
[1741421654463,5.55278,2132.4,2131.8,0.6685]
[1741421654663,2.083,2132.3,2131.8,1.60671]
[1741421654964,0.93815,2132.1,2131.9,0.93819]
[1741421655163,0.93815,2132.1,2132.0,0.6478]
[1741421655365,0.93815,2132.1,2132.0,3.0878]
[1741421655763,0.93815,2132.1,2132.0,2.44]
[1741421656155,3.2078,2132.1,2131.8,0.6285]
[1741421656462,0.9382,2131.9,2131.8,3.1485]
[1741421660260,3.0192,2131.9,2131.8,2.52]
[1741421660465,0.93824,2131.8,2131.7,0.6672]
[1741421660667,0.93824,2131.8,2131.7,3.1472]
[1741421670067,0.93824,2131.8,2131.7,2.48]
[1741421672873,3.2078,2131.8,2131.3,0.00703103]
[1741421673074,0.93838,2131.5,2131.4,0.6445]
[1741421673373,3.01138,2131.5,2131.4,0.6845]
[1741421675575,0.93842,2131.4,2131.3,0.00703103]
[1741421675780,0.93842,2131.4,2131.3,0.04703103]
[1741421675981,0.93842,2131.4,2131.3,0.00703103]
[1741421678574,0.93842,2131.4,2131.3,1.94703103]
[1741421678779,0.93842,2131.4,2131.3,0.00703103]
[1741421679680,5.2808,2131.5,2131.3,1.98703103]
[1741421679983,0.93842,2131.4,2131.3,1.98703103]
[1741421680476,0.93842,2131.4,2131.3,2.28703103]
[1741421680779,3.01042,2131.4,2131.3,1.94703103]
[1741421681377,3.01042,2131.4,2131.3,2.38703103]
[1741421682279,3.01042,2131.4,2131.3,0.00703103]
[1741421682585,3.01042,2131.4,2131.3,0.03703103]
[1741421686185,3.00442,2131.4,2131.3,0.03703103]
[1741421692198,3.00442,2131.4,2131.3,2.23703103]
[1741421692399,3.00442,2131.4,2131.3,0.00703103]
[1741421694599,3.00442,2131.4,2131.3,1.92703103]
[1741421694798,3.00442,2131.4,2131.3,0.02703103]
[1741421696399,3.00442,2131.4,2131.3,0.00703103]
[1741421696799,3.00442,2131.4,2131.3,2.15703103]
[1741421696999,3.00442,2131.4,2131.3,0.00703103]
[1741421697197,3.00442,2131.4,2131.3,2.13703103]
[1741421697399,3.00442,2131.4,2131.3,0.00703103]
[1741421697599,3.00442,2131.4,2131.3,2.16703103]
[1741421698700,3.00442,2131.4,2131.3,0.00703103]
[1741421699413,3.00442,2131.4,2131.3,2.39703103]
[1741421699903,3.00442,2131.4,2131.3,0.00703103]
[1741421700600,3.00442,2131.4,2131.3,2.29703103]
[1741421700899,3.00442,2131.4,2131.3,2.17703103]
[1741421701802,3.00442,2131.4,2131.3,0.00703103]
[1741421702197,3.00442,2131.4,2131.3,2.17703103]
[1741421702708,3.00442,2131.4,2131.3,2.24703103]
[1741421702897,3.00442,2131.4,2131.3,2.32703103]
[1741421703703,3.00442,2131.4,2131.3,2.03703103]
[1741421703902,3.00442,2131.4,2131.3,2.38703103]
[1741421704102,3.00442,2131.4,2131.3,0.00703103]
[1741421704703,3.00442,2131.4,2131.3,2.00703103]
[1741421705106,3.00442,2131.4,2131.3,0.00703103]
[1741421705807,3.45712,2131.4,2131.3,0.00703103]
[1741421707309,3.45712,2131.4,2131.3,2.22703103]
[1741421707607,3.45712,2131.4,2131.3,2.04703103]
[1741421707608,2.99242,2131.4,2131.3,2.04703103]
[1741421708105,2.99242,2131.4,2131.3,0.00703103]
[1741421709807,2.99242,2131.4,2131.3,2.38703103]
[1741421710007,2.99242,2131.4,2131.3,0.00703103]
[1741421712409,3.89328152,2131.4,2131.3,0.00703103]
[1741421713810,2.99242,2131.4,2131.3,0.00703103]
[1741421714811,6.20022,2131.4,2131.3,1.03e-06]
[1741421715009,7.10102602,2131.4,2131.3,1.03e-06]
[1741421715911,5.04702602,2131.4,2131.3,1.03e-06]
[1741421716114,6.20422,2131.4,2131.3,1.03e-06]
[1741421717812,0.9386,2131.0,2130.9,1.9131]
[1741421718014,0.9386,2131.0,2130.9,6.2031]
[1741421718209,2.9956,2131.0,2130.9,6.2031]
[1741421719612,0.00703103,2131.2,2130.9,6.2031]
[1741421719817,2.056,2131.3,2131.2,0.93851]
[1741421720015,2.056,2131.3,2131.2,3.23851]
[1741421720611,2.056,2131.3,2131.2,2.3]
[1741421720809,0.93846,2131.3,2131.2,2.3]
[1741421721010,20.0624339,2131.4,2131.2,2.3]
[1741421721214,22.1184339,2131.4,2131.3,0.6217]
[1741421721414,23.0568539,2131.4,2131.3,2.8617]
[1741421721615,20.0624339,2131.4,2131.3,3.80016]
[1741421722619,0.93842,2131.4,2131.3,2.8617]
[1741421723020,3.00043103,2131.5,2131.3,3.80015]
[1741421723314,2.06203103,2131.5,2131.3,2.8617]
[1741421723515,0.93842,2131.4,2131.3,2.8617]
[1741421723917,3.00042103,2131.5,2131.3,3.80015]
[1741421724521,0.93842,2131.4,2131.3,2.8617]
[1741421725115,3.00044103,2131.5,2131.3,3.80016]
[1741421726618,0.93842,2131.4,2131.3,3.80016]
[1741421726811,3.00044103,2131.5,2131.3,3.80016]
[1741421727424,2.06203103,2131.5,2131.4,0.93842]
[1741421727613,3.00044103,2131.5,2131.4,2.54]
[1741421727814,20.0624339,2131.8,2131.7,0.93829]
[1741421728118,22.1144339,2131.8,2131.7,3.20829]
[1741421728814,23.0526739,2131.8,2131.7,2.27]
[1741421729015,22.1144339,2131.8,2131.7,2.27]
[1741421729215,20.0624339,2131.8,2131.7,3.20829]
[1741421730021,20.0624339,2131.8,2131.7,6.41609]
[1741421730821,20.0624339,2131.8,2131.7,5.4778]
[1741421731120,20.0624339,2131.8,2131.7,6.41609]
[1741421731711,2.05803103,2132.0,2131.8,0.93824]
[1741421731918,0.9382,2131.9,2131.8,2.32]
[1741421732112,2.05803103,2132.0,2131.8,3.25824]
[1741421732316,0.00703103,2132.0,2131.9,0.9382]
[1741421732515,0.00703103,2132.0,2131.9,3.7582]
[1741421733016,20.0624339,2132.4,2131.9,2.82]
[1741421733216,20.0624339,2132.4,2132.3,0.93802]
[1741421733417,20.0624339,2132.4,2132.3,4.69802]
[1741421733611,20.0624339,2132.4,2132.3,11.90582]
[1741421733817,9.7424339,2132.4,2132.3,11.90582]
[1741421734018,9.7424339,2132.4,2132.3,7.90582]
[1741421734019,6.7157339,2132.4,2132.3,7.90582]
[1741421734218,6.7157339,2132.4,2132.3,11.90582]
[1741421734421,0.00703103,2132.6,2132.5,0.93794]
[1741421734619,0.00703103,2132.6,2132.5,3.56794]
[1741421739314,0.00703103,2132.6,2132.5,2.63]
[1741421739516,0.00703103,2132.6,2132.5,3.56794]
[1741421740115,0.00703103,2132.6,2132.5,2.63]
[1741421740511,0.00703103,2132.6,2132.5,3.56794]
[1741421744225,0.00703103,2132.6,2132.5,2.63]
[1741421744526,0.00703103,2132.6,2132.5,3.56794]
[1741421744727,0.00703103,2132.6,2132.5,4.23774]
[1741421745227,0.94492103,2132.6,2132.5,3.2998]
[1741421745630,0.94492103,2132.6,2132.5,2.63]
[1741421745927,0.94492103,2132.6,2132.3,3.2078]
[1741421745928,2.05603103,2132.6,2132.3,3.2078]
[1741421746128,0.93798,2132.4,2132.3,5.5978]
[1741421746429,0.93798,2132.4,2132.3,3.2078]
[1741421746825,0.93798,2132.4,2132.3,5.4878]
[1741421747021,1.2875,2132.5,2132.3,5.4878]
[1741421747232,0.6259,2132.5,2132.3,6.42578]
[1741421747433,0.93798,2132.4,2132.3,5.4878]
[1741421749640,2.69013103,2132.6,2132.3,5.4878]
[1741421749935,0.64113103,2132.6,2132.3,6.1191]
[1741421750138,0.00703103,2132.6,2132.5,0.93794]
[1741421750328,0.00703103,2132.6,2132.5,1.11794]
[1741421750530,0.00703103,2132.6,2132.5,0.18]
[1741421751041,0.00703103,2132.6,2132.5,1.11794]
[1741421752546,0.94492103,2132.6,2132.5,0.18]
[1741421752746,0.66833103,2132.6,2132.3,3.2078]
[1741421752950,0.93798,2132.4,2132.3,5.7078]
[1741421754054,2.99198,2132.4,2132.3,3.2078]
[1741421756056,2.054,2132.4,2132.1,0.00703103]
[1741421756248,1.57796,2132.3,2132.1,5.71483103]
[1741421756450,2.054,2132.4,2132.2,0.93807]
[1741421756647,2.99198,2132.4,2132.2,3.02807]
[1741421757555,2.054,2132.4,2132.2,2.09]
[1741421757756,2.054,2132.4,2132.3,1.56342]
[1741421757954,2.054,2132.4,2132.3,3.4495]
[1741421758154,2.99198,2132.4,2132.3,3.4495]
[1741421758546,2.054,2132.4,2132.3,3.4495]
[1741421758854,2.054,2132.4,2132.3,4.38752]
[1741421760059,1.58904,2132.5,2132.3,4.38752]
[1741421760060,0.64693103,2132.6,2132.3,3.4495]
[1741421760359,1.58483103,2132.6,2132.4,0.93795]
[1741421760547,1.58483103,2132.6,2132.4,1.86035]
[1741421761155,0.64693103,2132.6,2132.4,0.9224]
[1741421761361,0.93794,2132.5,2132.4,0.25]
[1741421763764,1.54984,2132.5,2132.4,0.25]
[1741421767866,0.64693103,2132.6,2132.4,0.25]
[1741421768062,0.93794,2132.5,2132.4,0.25]
[1741421769873,0.93807,2132.2,2132.1,3.21483103]
[1741421770168,0.64693103,2132.6,2132.1,7.00263103]
[1741421770368,0.93807,2132.2,2132.1,7.00263103]
[1741421770567,0.93806,2132.3,2132.1,7.00263103]
[1741421771273,0.93801,2132.4,2132.2,0.93807]
[1741421771475,0.93801,2132.4,2132.3,0.6568]
[1741421771775,0.93801,2132.4,2132.3,3.5673]
[1741421772073,2.045,2132.5,2132.4,0.93797]
[1741421772373,2.045,2132.5,2132.4,3.01797]
[1741421772569,2.045,2132.5,2132.3,1.2973]
[1741421772570,0.93798,2132.4,2132.3,1.2973]
[1741421772769,2.045,2132.5,2132.3,3.3373]
[1741421772973,2.98295,2132.5,2132.4,0.93798]
[1741421773164,0.00703103,2132.6,2132.4,2.38]
[1741421773366,2.05103103,2132.6,2132.5,1.56754]
[1741421773569,2.05103103,2132.6,2132.5,3.79754]
[1741421775378,0.93776,2132.9,2132.7,0.93781]
[1741421775580,3.2078,2133.0,2132.9,0.93776]
[1741421775767,3.2078,2133.0,2132.9,3.88776]
[1741421775968,3.2078,2133.0,2132.9,4.49656]
[1741421777072,0.00463092,2133.2,2133.1,0.93767]
[1741421777270,0.00463092,2133.2,2133.1,3.71767]
[1741421777478,0.00463092,2133.2,2133.1,6.92547]
[1741421778478,0.00463092,2133.2,2133.1,3.71767]
[1741421778669,0.00463092,2133.2,2133.1,6.92547]
[1741421779679,0.00463092,2133.2,2133.1,5.9878]
[1741421779874,0.94226092,2133.2,2133.1,5.9878]
[1741421780379,0.00463092,2133.2,2133.1,2.78]
[1741421781081,0.94226092,2133.2,2133.1,2.78]
[1741421782279,0.00463092,2133.2,2133.1,2.78]
[1741421782476,0.00463092,2133.2,2133.1,3.71767]
[1741421782877,0.9375,2133.5,2133.3,0.93756]
[1741421783074,0.9375,2133.5,2133.4,1.297]
[1741421783379,0.9375,2133.5,2133.4,3.477]
[1741421785673,2.048,2133.6,2133.4,3.477]
[1741421785874,2.98548,2133.6,2133.4,4.41454]
[1741421786076,2.98548,2133.6,2133.5,0.6313]
[1741421787083,2.98548,2133.6,2133.5,2.6513]
[1741421787878,2.048,2133.6,2133.4,0.6528]
[1741421788084,0.9375,2133.5,2133.4,0.7128]